[Event "Live Chess"]
[Site "Chess.com"]
[Date "2024.06.02"]
[Round "-"]
[White "Greenbecker"]
[Black "febray_27"]
[Result "0-1"]
[WhiteElo "1705"]
[BlackElo "2054"]
[TimeControl "300"]
[EndTime "23:25:27 PDT"]
[Termination "febray_27 won on time"]

1. e4 {[%clk 0:04:56.7]} 1... c5 {[%clk 0:04:58.4]} 2. g3 {[%clk 0:04:54.8]}
2... e6 {[%clk 0:04:57.2]} 3. Bg2 {[%clk 0:04:54]} 3... Nc6 {[%clk 0:04:52.7]}
4. Ne2 {[%clk 0:04:53.4]} 4... b6 {[%clk 0:04:50.8]} 5. O-O {[%clk 0:04:52.9]}
5... Bb7 {[%clk 0:04:50.1]} 6. d4 {[%clk 0:04:50.6]} 6... cxd4 {[%clk
0:04:48.7]} 7. Nxd4 {[%clk 0:04:49.4]} 7... Nf6 {[%clk 0:04:45]} 8. Nxc6 {[%clk
0:04:48.1]} 8... dxc6 {[%clk 0:04:43.4]} 9. Qxd8+ {[%clk 0:04:45.9]} 9... Rxd8
{[%clk 0:04:42.8]} 10. Nc3 {[%clk 0:04:45.1]} 10... Bc5 {[%clk 0:04:37.4]} 11.
Bg5 {[%clk 0:04:41.8]} 11... Be7 {[%clk 0:04:26.8]} 12. Rad1 {[%clk 0:04:37.9]}
12... O-O {[%clk 0:04:25.1]} 13. e5 {[%clk 0:04:27.6]} 13... Nd5 {[%clk
0:04:20.6]} 14. Bxe7 {[%clk 0:04:15.3]} 14... Nxe7 {[%clk 0:04:19.6]} 15. Ne4
{[%clk 0:04:13.2]} 15... Ng6 {[%clk 0:04:05.8]} 16. Nd6 {[%clk 0:04:00.1]} 16...
Ba6 {[%clk 0:03:55.7]} 17. Rfe1 {[%clk 0:03:55]} 17... c5 {[%clk 0:03:54.9]} 18.
f4 {[%clk 0:03:42.8]} 18... Ne7 {[%clk 0:03:37.1]} 19. b3 {[%clk 0:03:29]} 19...
Nc8 {[%clk 0:03:19]} 20. c4 {[%clk 0:03:22.5]} 20... Ne7 {[%clk 0:02:57.5]} 21.
Rd2 {[%clk 0:03:14.3]} 21... Nf5 {[%clk 0:02:56.3]} 22. Kf2 {[%clk 0:02:47.3]}
22... Nd4 {[%clk 0:02:53.6]} 23. Red1 {[%clk 0:02:39]} 23... f6 {[%clk
0:02:52.4]} 24. Ke3 {[%clk 0:02:00]} 24... fxe5 {[%clk 0:02:48.6]} 25. fxe5
{[%clk 0:01:53]} 25... Bc8 {[%clk 0:02:41.9]} 26. Rf2 {[%clk 0:01:28.9]} 26...
Rxf2 {[%clk 0:02:35.1]} 27. Kxf2 {[%clk 0:01:26.6]} 27... Bd7 {[%clk 0:02:29.4]}
28. Rd2 {[%clk 0:01:07.6]} 28... Bc6 {[%clk 0:02:25.1]} 29. Rxd4 {[%clk
0:00:57]} 29... Bxg2 {[%clk 0:02:19.1]} 30. Rf4 {[%clk 0:00:54.5]} 30... Bc6
{[%clk 0:02:08.5]} 31. Ke3 {[%clk 0:00:45]} 31... Rf8 {[%clk 0:02:06.8]} 32. h4
{[%clk 0:00:40.7]} 32... a6 {[%clk 0:01:59.8]} 33. g4 {[%clk 0:00:37.5]} 33...
b5 {[%clk 0:01:58.8]} 34. a3 {[%clk 0:00:34.6]} 34... g6 {[%clk 0:01:51.2]} 35.
h5 {[%clk 0:00:32.5]} 35... gxh5 {[%clk 0:01:46.8]} 36. gxh5 {[%clk 0:00:31.1]}
36... Rxf4 {[%clk 0:01:42.4]} 37. Kxf4 {[%clk 0:00:29.5]} 37... Kg7 {[%clk
0:01:42.1]} 38. Kg5 {[%clk 0:00:27.6]} 38... bxc4 {[%clk 0:01:36.2]} 39. bxc4
{[%clk 0:00:25.8]} 39... Bf3 {[%clk 0:01:23.2]} 40. h6+ {[%clk 0:00:24.4]} 40...
Kf8 {[%clk 0:01:20.6]} 41. Kf6 {[%clk 0:00:23.4]} 41... Bg4 {[%clk 0:01:18.1]}
42. Nb7 {[%clk 0:00:22.1]} 42... Be2 {[%clk 0:01:09.2]} 43. Nxc5 {[%clk
0:00:21]} 43... Bxc4 {[%clk 0:01:08.8]} 44. Nxe6+ {[%clk 0:00:19.6]} 44... Ke8
{[%clk 0:01:08.1]} 45. Ng5 {[%clk 0:00:17.8]} 45... Bg8 {[%clk 0:01:03.9]} 46.
Kg7 {[%clk 0:00:16]} 46... Bc4 {[%clk 0:01:01.4]} 47. Nxh7 {[%clk 0:00:15.1]}
47... Bd3 {[%clk 0:01:01.3]} 48. Nf6+ {[%clk 0:00:14]} 48... Ke7 {[%clk
0:01:00.5]} 49. h7 {[%clk 0:00:12.8]} 49... Bxh7 {[%clk 0:01:00.2]} 50. Nxh7
{[%clk 0:00:11.3]} 50... Ke6 {[%clk 0:01:00.1]} 51. Nf6 {[%clk 0:00:09.6]} 51...
Kxe5 {[%clk 0:01:00]} 52. Nd7+ {[%clk 0:00:08.6]} 52... Kd5 {[%clk 0:00:59.7]}
53. Nb8 {[%clk 0:00:07.4]} 53... a5 {[%clk 0:00:59.1]} 54. Kf6 {[%clk
0:00:06.4]} 54... Kc4 {[%clk 0:00:58.3]} 55. Ke5 {[%clk 0:00:05.1]} 55... Kb3
{[%clk 0:00:58.2]} 56. Nc6 {[%clk 0:00:03.9]} 56... a4 {[%clk 0:00:58.1]} 57.
Nd4+ {[%clk 0:00:02]} 57... Kxa3 {[%clk 0:00:58]} 58. Kd5 {[%clk 0:00:01]} 58...
Kb2 {[%clk 0:00:56.7]} 59. Kc4 {[%clk 0:00:00.5]} 59... a3 {[%clk 0:00:56.1]}
0-1

[Event "Live Chess"]
[Site "Chess.com"]
[Date "2024.06.02"]
[Round "-"]
[White "Tatarinov_Maxim"]
[Black "KeithArkell"]
[Result "0-1"]
[WhiteElo "2273"]
[BlackElo "2427"]
[TimeControl "300"]
[EndTime "23:26:14 PDT"]
[Termination "KeithArkell won by resignation"]

1. Nf3 {[%clk 0:04:56.8]} 1... d5 {[%clk 0:04:58.5]} 2. g3 {[%clk 0:04:55.7]}
2... Bg4 {[%clk 0:04:57.6]} 3. Bg2 {[%clk 0:04:54.8]} 3... Bxf3 {[%clk
0:04:56.8]} 4. Bxf3 {[%clk 0:04:53.8]} 4... c6 {[%clk 0:04:56.4]} 5. O-O {[%clk
0:04:52.7]} 5... Nf6 {[%clk 0:04:55.8]} 6. d3 {[%clk 0:04:52.2]} 6... e6 {[%clk
0:04:55.4]} 7. Nd2 {[%clk 0:04:49.7]} 7... Nbd7 {[%clk 0:04:54.9]} 8. e4 {[%clk
0:04:47.3]} 8... Bc5 {[%clk 0:04:52.8]} 9. exd5 {[%clk 0:04:44.4]} 9... cxd5
{[%clk 0:04:51]} 10. Bg2 {[%clk 0:04:40.4]} 10... O-O {[%clk 0:04:49.6]} 11. c3
{[%clk 0:04:38.9]} 11... Re8 {[%clk 0:04:47.5]} 12. d4 {[%clk 0:04:38.2]} 12...
Bf8 {[%clk 0:04:45.3]} 13. Nf3 {[%clk 0:04:36.9]} 13... b5 {[%clk 0:04:44.4]}
14. Re1 {[%clk 0:04:35]} 14... Rc8 {[%clk 0:04:43.4]} 15. a3 {[%clk 0:04:24.2]}
15... a5 {[%clk 0:04:41.3]} 16. Bf4 {[%clk 0:04:21.7]} 16... b4 {[%clk
0:04:40.3]} 17. axb4 {[%clk 0:04:20.7]} 17... axb4 {[%clk 0:04:39.7]} 18. Qd3
{[%clk 0:04:17.6]} 18... bxc3 {[%clk 0:04:38.3]} 19. bxc3 {[%clk 0:04:16.4]}
19... Nh5 {[%clk 0:04:34.6]} 20. Bd2 {[%clk 0:04:13.7]} 20... Bd6 {[%clk
0:04:32.5]} 21. Ra7 {[%clk 0:04:05.6]} 21... Nhf6 {[%clk 0:04:31.1]} 22. Rb1
{[%clk 0:04:00.3]} 22... Ne4 {[%clk 0:04:29.3]} 23. Rbb7 {[%clk 0:03:58.4]}
23... Rc7 {[%clk 0:04:25]} 24. h4 {[%clk 0:03:24.5]} 24... Nxd2 {[%clk
0:04:22.4]} 25. Nxd2 {[%clk 0:03:18]} 25... Rxb7 {[%clk 0:04:21.3]} 26. Rxb7
{[%clk 0:03:16.6]} 26... Nf6 {[%clk 0:04:18.9]} 27. Qb5 {[%clk 0:03:10.6]} 27...
h6 {[%clk 0:04:13.7]} 28. c4 {[%clk 0:02:45.6]} 28... dxc4 {[%clk 0:04:12.4]}
29. Nxc4 {[%clk 0:02:42.3]} 29... Bf8 {[%clk 0:04:06.7]} 30. Bc6 {[%clk
0:02:33.3]} 30... Re7 {[%clk 0:04:05]} 31. Rxe7 {[%clk 0:01:57.3]} 31... Bxe7
{[%clk 0:04:02.4]} 32. Qb2 {[%clk 0:01:55.6]} 32... Qc7 {[%clk 0:03:57.2]} 33.
Ne5 {[%clk 0:01:51.6]} 33... Bd6 {[%clk 0:03:55]} 34. Bf3 {[%clk 0:01:48.5]}
34... Bxe5 {[%clk 0:03:53.7]} 35. dxe5 {[%clk 0:01:48.4]} 35... Nd7 {[%clk
0:03:52.5]} 36. Qb7 {[%clk 0:01:32]} 36... Qxb7 {[%clk 0:03:51.6]} 37. Bxb7
{[%clk 0:01:31.9]} 37... Nxe5 {[%clk 0:03:51]} 38. Kg2 {[%clk 0:01:30.7]} 38...
g5 {[%clk 0:03:48.7]} 39. hxg5 {[%clk 0:01:29.3]} 39... hxg5 {[%clk 0:03:48.6]}
40. f4 {[%clk 0:01:28.4]} 40... gxf4 {[%clk 0:03:47.8]} 41. gxf4 {[%clk
0:01:28.3]} 41... Nc4 {[%clk 0:03:41]} 42. Kg3 {[%clk 0:01:25.3]} 42... Nd6
{[%clk 0:03:39.7]} 43. Bc6 {[%clk 0:01:23.5]} 43... Kg7 {[%clk 0:03:39.1]} 44.
Kg4 {[%clk 0:01:22]} 44... Kf6 {[%clk 0:03:38.3]} 45. Ba4 {[%clk 0:01:19.1]}
45... Nf5 {[%clk 0:03:37.6]} 46. Bb5 {[%clk 0:01:16]} 46... Ne3+ {[%clk
0:03:36.6]} 47. Kf3 {[%clk 0:01:15.5]} 47... Nc2 {[%clk 0:03:34.8]} 48. Kg4
{[%clk 0:01:14.3]} 48... Nd4 {[%clk 0:03:33.6]} 49. Ba4 {[%clk 0:01:13.2]} 49...
Nf5 {[%clk 0:03:32.4]} 50. Bb5 {[%clk 0:01:11.1]} 50... Nd4 {[%clk 0:03:30.7]}
51. Ba4 {[%clk 0:01:09.9]} 51... Kg6 {[%clk 0:03:29.9]} 52. Be8 {[%clk
0:01:05.4]} 52... Kg7 {[%clk 0:03:28.3]} 53. Ba4 {[%clk 0:01:03.9]} 53... f5+
{[%clk 0:03:27.5]} 54. Kg3 {[%clk 0:01:01]} 54... Kf6 {[%clk 0:03:24]} 55. Be8
{[%clk 0:00:58.8]} 55... Ke7 {[%clk 0:03:21.2]} 56. Ba4 {[%clk 0:00:57.4]} 56...
Kd6 {[%clk 0:03:20.3]} 57. Kf2 {[%clk 0:00:55.1]} 57... Kd5 {[%clk 0:03:19.4]}
58. Ke3 {[%clk 0:00:54.4]} 58... Kc5 {[%clk 0:03:12.2]} 59. Be8 {[%clk
0:00:51.7]} 59... Nc2+ {[%clk 0:03:08.6]} 60. Kf3 {[%clk 0:00:50.5]} 60... Nb4
{[%clk 0:03:07.2]} 61. Ke3 {[%clk 0:00:48.9]} 61... Kd5 {[%clk 0:03:04.4]} 62.
Ba4 {[%clk 0:00:46.8]} 62... Na6 {[%clk 0:03:02.7]} 63. Bb3+ {[%clk 0:00:45.8]}
63... Kd6 {[%clk 0:03:01.5]} 64. Kd4 {[%clk 0:00:44.7]} 64... Nc7 {[%clk
0:03:00.3]} 65. Bc4 {[%clk 0:00:42.7]} 65... Ne8 {[%clk 0:02:58.8]} 66. Bb3
{[%clk 0:00:40.5]} 66... Nf6 {[%clk 0:02:57.8]} 67. Ke3 {[%clk 0:00:37.5]} 67...
Nd5+ {[%clk 0:02:56]} 68. Kf3 {[%clk 0:00:36.8]} 68... Kc5 {[%clk 0:02:53.9]}
69. Ba4 {[%clk 0:00:35.2]} 69... Kd4 {[%clk 0:02:51.3]} 70. Bd7 {[%clk 0:00:34]}
70... Nc7 {[%clk 0:02:50]} 71. Bc8 {[%clk 0:00:33.1]} 71... Kd5 {[%clk
0:02:49.3]} 72. Bd7 {[%clk 0:00:31.8]} 72... Na6 {[%clk 0:02:46.8]} 73. Ba4
{[%clk 0:00:30.5]} 73... Nb4 {[%clk 0:02:45.7]} 74. Bb3+ {[%clk 0:00:29.4]}
74... Kd6 {[%clk 0:02:45.2]} 75. Bc4 {[%clk 0:00:28.7]} 75... Nc6 {[%clk
0:02:43.5]} 76. Bb3 {[%clk 0:00:27.9]} 76... Nd4+ {[%clk 0:02:42.5]} 0-1

[Event "Live Chess"]
[Site "Chess.com"]
[Date "2024.06.02"]
[Round "-"]
[White "elephantgerrald"]
[Black "RockTroll"]
[Result "1-0"]
[WhiteElo "839"]
[BlackElo "2183"]
[TimeControl "300"]
[EndTime "23:26:57 PDT"]
[Termination "elephantgerrald won by resignation"]

1. e4 {[%clk 0:04:57.6]} 1... d5 {[%clk 0:04:58.4]} 2. exd5 {[%clk 0:04:54.7]}
2... Qxd5 {[%clk 0:04:58.3]} 3. Nc3 {[%clk 0:04:54.6]} 3... Qd8 {[%clk
0:04:57.7]} 4. Nf3 {[%clk 0:04:54]} 4... Nf6 {[%clk 0:04:57.2]} 5. d4 {[%clk
0:04:53.6]} 5... Bg4 {[%clk 0:04:56.6]} 6. Bf4 {[%clk 0:04:52.9]} 6... Bxf3
{[%clk 0:04:53.8]} 7. Qxf3 {[%clk 0:04:51.2]} 7... Qxd4 {[%clk 0:04:52.8]} 8.
Qxb7 {[%clk 0:04:42.8]} 8... Qxf4 {[%clk 0:04:40.6]} 9. Qxa8 {[%clk 0:04:40.7]}
9... Qb4 {[%clk 0:04:38]} 10. O-O-O {[%clk 0:04:32.4]} 10... e6 {[%clk
0:04:36.5]} 11. Bb5+ {[%clk 0:04:29.4]} 11... Ke7 {[%clk 0:04:24]} 12. Qxb8
{[%clk 0:04:26.7]} 12... Nd5 {[%clk 0:04:01.5]} 13. Nxd5+ {[%clk 0:04:21.4]}
13... exd5 {[%clk 0:04:00.9]} 14. Qxc7+ {[%clk 0:04:19.4]} 14... Kf6 {[%clk
0:04:00.3]} 15. Rxd5 {[%clk 0:04:12.4]} 15... Qf4+ {[%clk 0:03:43.4]} 16. Qxf4+
{[%clk 0:04:05.9]} 1-0

[Event "Live Chess"]
[Site "Chess.com"]
[Date "2024.06.02"]
[Round "-"]
[White "Ziipyyy"]
[Black "Duke_of_Bebington"]
[Result "0-1"]
[WhiteElo "1312"]
[BlackElo "1661"]
[TimeControl "300"]
[EndTime "23:26:59 PDT"]
[Termination "Duke_of_Bebington won by resignation"]

1. e4 {[%clk 0:04:59.8]} 1... e5 {[%clk 0:04:58.9]} 2. Nc3 {[%clk 0:04:58.7]}
2... Nf6 {[%clk 0:04:56.5]} 3. f4 {[%clk 0:04:57.5]} 3... d6 {[%clk 0:04:54]} 4.
f5 {[%clk 0:04:56.2]} 4... Nc6 {[%clk 0:04:47.4]} 5. Bc4 {[%clk 0:04:49.5]} 5...
Be7 {[%clk 0:04:46]} 6. Nf3 {[%clk 0:04:45.8]} 6... O-O {[%clk 0:04:45.1]} 7. d3
{[%clk 0:04:31.7]} 7... Na5 {[%clk 0:04:39.1]} 8. Bb3 {[%clk 0:04:13.4]} 8...
Nxb3 {[%clk 0:04:36.2]} 9. axb3 {[%clk 0:04:13.3]} 9... c6 {[%clk 0:04:25.7]}
10. O-O {[%clk 0:04:11.3]} 10... Qc7 {[%clk 0:04:21.5]} 11. Bg5 {[%clk
0:04:08.8]} 11... h6 {[%clk 0:04:16.2]} 12. Be3 {[%clk 0:04:06.5]} 12... d5
{[%clk 0:04:13.4]} 13. Qd2 {[%clk 0:04:00.8]} 13... d4 {[%clk 0:04:10]} 14. Bxh6
{[%clk 0:03:59.1]} 14... dxc3 {[%clk 0:04:08.7]} 15. bxc3 {[%clk 0:03:49.7]}
15... Nh7 {[%clk 0:03:50.4]} 16. Be3 {[%clk 0:03:36.9]} 16... f6 {[%clk
0:03:46]} 17. Qf2 {[%clk 0:03:32.6]} 17... Kf7 {[%clk 0:03:35.2]} 18. Nh4 {[%clk
0:03:28.5]} 18... Ke8 {[%clk 0:03:25.7]} 19. Ng6 {[%clk 0:03:25.3]} 19... Rg8
{[%clk 0:03:25.2]} 20. Qh4 {[%clk 0:03:19.8]} 20... Nf8 {[%clk 0:03:19.3]} 21.
Qh5 {[%clk 0:03:08.4]} 21... Nxg6 {[%clk 0:03:08.8]} 22. Qxg6+ {[%clk
0:03:08.3]} 22... Kf8 {[%clk 0:02:59.8]} 23. Rf3 {[%clk 0:03:03.1]} 23... Bd7
{[%clk 0:02:58.6]} 24. Rh3 {[%clk 0:02:58.4]} 24... Be8 {[%clk 0:02:57.5]} 25.
Qg4 {[%clk 0:02:49.7]} 25... Bf7 {[%clk 0:02:51]} 26. Rh7 {[%clk 0:02:42.4]}
26... g6 {[%clk 0:02:38.1]} 27. Bh6+ {[%clk 0:02:28.4]} 27... Ke8 {[%clk
0:02:35.5]} 28. Rg7 {[%clk 0:02:17]} 28... Rxg7 {[%clk 0:02:26.6]} 29. Bxg7
{[%clk 0:02:16.9]} 29... g5 {[%clk 0:02:20.7]} 30. h4 {[%clk 0:02:12.4]} 30...
gxh4 {[%clk 0:02:16.7]} 31. Qxh4 {[%clk 0:02:08.1]} 31... Qd8 {[%clk 0:02:11]}
32. Qh8+ {[%clk 0:02:00.9]} 32... Kd7 {[%clk 0:02:09.6]} 33. g4 {[%clk 0:01:55]}
33... Qxh8 {[%clk 0:02:07.1]} 34. Bxh8 {[%clk 0:01:53.9]} 34... Rxh8 {[%clk
0:02:06.5]} 35. Kg2 {[%clk 0:01:52.4]} 35... a6 {[%clk 0:01:58.1]} 36. b4 {[%clk
0:01:48.4]} 36... Kc7 {[%clk 0:01:56.1]} 37. Kg3 {[%clk 0:01:42.3]} 37... Kb6
{[%clk 0:01:55.3]} 38. Ra5 {[%clk 0:01:40.3]} 38... Bf8 {[%clk 0:01:52.4]} 39.
g5 {[%clk 0:01:32.5]} 39... fxg5 {[%clk 0:01:50.4]} 40. Kg4 {[%clk 0:01:31.4]}
40... Be7 {[%clk 0:01:47.4]} 41. Rxe5 {[%clk 0:01:26.8]} 41... Rh4+ {[%clk
0:01:43.9]} 42. Kg3 {[%clk 0:01:24.9]} 42... Bd6 {[%clk 0:01:42.5]} 43. d4
{[%clk 0:01:19.9]} 43... Bxe5+ {[%clk 0:01:41.3]} 44. dxe5 {[%clk 0:01:19.8]}
44... Rxe4 {[%clk 0:01:39.6]} 45. e6 {[%clk 0:01:18]} 45... Bh5 {[%clk
0:01:35.2]} 46. c4 {[%clk 0:01:08.4]} 46... Kc7 {[%clk 0:01:34.2]} 47. b5 {[%clk
0:01:04.3]} 47... axb5 {[%clk 0:01:32.6]} 48. cxb5 {[%clk 0:01:04.2]} 48... cxb5
{[%clk 0:01:29]} 49. Kf2 {[%clk 0:01:01.3]} 49... Kd8 {[%clk 0:01:26.7]} 0-1

[Event "Live Chess"]
[Site "Chess.com"]
[Date "2024.06.02"]
[Round "-"]
[White "matt1979"]
[Black "JohanKjeldahl"]
[Result "0-1"]
[WhiteElo "1387"]
[BlackElo "1858"]
[TimeControl "300"]
[EndTime "23:27:16 PDT"]
[Termination "JohanKjeldahl won on time"]

1. f4 {[%clk 0:04:58.8]} 1... e5 {[%clk 0:04:58]} 2. fxe5 {[%clk 0:04:56]} 2...
d6 {[%clk 0:04:57.1]} 3. Nf3 {[%clk 0:04:53.6]} 3... dxe5 {[%clk 0:04:53.9]} 4.
e4 {[%clk 0:04:52.5]} 4... Nc6 {[%clk 0:04:50.6]} 5. Bb5 {[%clk 0:04:50.6]} 5...
Bd6 {[%clk 0:04:48.2]} 6. Bxc6+ {[%clk 0:04:47.1]} 6... bxc6 {[%clk 0:04:46.4]}
7. c3 {[%clk 0:04:41.4]} 7... Nf6 {[%clk 0:04:44.2]} 8. Qe2 {[%clk 0:04:36.4]}
8... a5 {[%clk 0:04:41.3]} 9. O-O {[%clk 0:04:25.5]} 9... Ba6 {[%clk 0:04:39.8]}
10. d3 {[%clk 0:04:24.2]} 10... O-O {[%clk 0:04:36.1]} 11. c4 {[%clk 0:04:10.8]}
11... Bc5+ {[%clk 0:04:28.6]} 12. Be3 {[%clk 0:04:06.6]} 12... Bb6 {[%clk
0:04:22.7]} 13. Nc3 {[%clk 0:04:00.3]} 13... Bd4 {[%clk 0:04:19.2]} 14. Bxd4
{[%clk 0:03:48]} 14... exd4 {[%clk 0:04:17.2]} 15. Nd1 {[%clk 0:03:36]} 15...
Rb8 {[%clk 0:04:09.6]} 16. b3 {[%clk 0:03:34.4]} 16... Re8 {[%clk 0:04:04.7]}
17. Nf2 {[%clk 0:03:31.1]} 17... Qd7 {[%clk 0:03:57.5]} 18. Rad1 {[%clk
0:03:18.7]} 18... c5 {[%clk 0:03:55.3]} 19. Nh3 {[%clk 0:03:05.6]} 19... Ng4
{[%clk 0:03:52.8]} 20. Rfe1 {[%clk 0:02:47.4]} 20... Ne3 {[%clk 0:03:50.6]} 21.
Rd2 {[%clk 0:02:43.3]} 21... f5 {[%clk 0:03:45.5]} 22. Qf2 {[%clk 0:02:36.2]}
22... h6 {[%clk 0:03:23.3]} 23. Nf4 {[%clk 0:02:21.9]} 23... fxe4 {[%clk
0:03:19.4]} 24. dxe4 {[%clk 0:02:17.6]} 24... Rxe4 {[%clk 0:03:11.8]} 25. Nd5
{[%clk 0:02:15.2]} 25... Bb7 {[%clk 0:02:58.1]} 26. Nxe3 {[%clk 0:02:08]} 26...
dxe3 {[%clk 0:02:55.6]} 27. Rxe3 {[%clk 0:02:05.1]} 27... Qe7 {[%clk 0:02:48.8]}
28. Rde2 {[%clk 0:01:54.9]} 28... Rxe3 {[%clk 0:02:46.1]} 29. Rxe3 {[%clk
0:01:51.8]} 29... Qf6 {[%clk 0:02:44.6]} 30. Re1 {[%clk 0:01:42.7]} 30... Rf8
{[%clk 0:02:41.8]} 31. Rf1 {[%clk 0:01:36.9]} 31... Bxf3 {[%clk 0:02:34.3]} 32.
gxf3 {[%clk 0:01:28.2]} 32... Qg5+ {[%clk 0:02:27.7]} 33. Qg2 {[%clk 0:01:26]}
33... Qf4 {[%clk 0:02:18]} 34. Qf2 {[%clk 0:01:22.5]} 34... Qd4 {[%clk
0:02:16.4]} 35. Kg2 {[%clk 0:01:11.3]} 35... Rf6 {[%clk 0:02:04.6]} 36. Qe2
{[%clk 0:01:08.3]} 36... Rd6 {[%clk 0:01:49.4]} 37. Qe8+ {[%clk 0:01:04.8]}
37... Kh7 {[%clk 0:01:45.9]} 38. Qe2 {[%clk 0:00:58.7]} 38... Rg6+ {[%clk
0:01:37.8]} 39. Kh1 {[%clk 0:00:56.6]} 39... Rf6 {[%clk 0:01:24.8]} 40. Qc2+
{[%clk 0:00:53.4]} 40... Kg8 {[%clk 0:01:19.4]} 41. Qe2 {[%clk 0:00:51]} 41...
Kf8 {[%clk 0:01:14.7]} 42. Re1 {[%clk 0:00:43.5]} 42... Qd7 {[%clk 0:01:08.1]}
43. Qe5 {[%clk 0:00:32.7]} 43... Rxf3 {[%clk 0:00:50.5]} 44. Qxc5+ {[%clk
0:00:29.7]} 44... Qd6 {[%clk 0:00:42.8]} 45. Qh5 {[%clk 0:00:19.2]} 45... Rf7
{[%clk 0:00:36.1]} 46. Qh3 {[%clk 0:00:13.8]} 46... Kg8 {[%clk 0:00:26.8]} 47.
Re8+ {[%clk 0:00:09.5]} 47... Kh7 {[%clk 0:00:23.2]} 48. Re1 {[%clk 0:00:05.5]}
48... Qc6+ {[%clk 0:00:20.9]} 49. Kg1 {[%clk 0:00:03.5]} 49... Qg6+ {[%clk
0:00:18]} 50. Kh1 {[%clk 0:00:02]} 50... Qc2 {[%clk 0:00:13.6]} 51. Kg1 {[%clk
0:00:00.8]} 51... Qf2+ {[%clk 0:00:10.8]} 0-1

[Event "Live Chess"]
[Site "Chess.com"]
[Date "2024.06.02"]
[Round "-"]
[White "Greenbecker"]
[Black "booktrunk"]
[Result "1-0"]
[WhiteElo "1720"]
[BlackElo "1536"]
[TimeControl "300"]
[EndTime "23:27:22 PDT"]
[Termination "Greenbecker won by resignation"]

1. e4 {[%clk 0:04:53.9]} 1... b6 {[%clk 0:04:57.7]} 2. d4 {[%clk 0:04:52.5]}
2... Bb7 {[%clk 0:04:53.4]} 3. Nc3 {[%clk 0:04:51.7]} 3... e6 {[%clk 0:04:51.3]}
4. Nf3 {[%clk 0:04:51]} 4... Nf6 {[%clk 0:04:49.6]} 5. Bd3 {[%clk 0:04:50.2]}
5... Bb4 {[%clk 0:04:46.6]} 6. e5 {[%clk 0:04:47.6]} 6... Nd5 {[%clk 0:04:41.1]}
7. Bd2 {[%clk 0:04:45.6]} 7... Nxc3 {[%clk 0:04:37.8]} 8. bxc3 {[%clk
0:04:43.8]} 8... Be7 {[%clk 0:04:33.9]} 9. O-O {[%clk 0:04:42.7]} 9... f6 {[%clk
0:04:31.3]} 10. Re1 {[%clk 0:04:40.3]} 10... fxe5 {[%clk 0:04:29.2]} 11. Nxe5
{[%clk 0:04:38.1]} 11... O-O {[%clk 0:04:27.8]} 12. Qh5 {[%clk 0:04:31.6]} 12...
h6 {[%clk 0:04:14.7]} 13. Qg6 {[%clk 0:04:25.8]} 1-0

[Event "Live Chess"]
[Site "Chess.com"]
[Date "2024.06.02"]
[Round "-"]
[White "juniortay"]
[Black "ProfPoisson"]
[Result "1-0"]
[WhiteElo "2408"]
[BlackElo "1273"]
[TimeControl "300"]
[EndTime "23:27:33 PDT"]
[Termination "juniortay won by resignation"]

1. e4 {[%clk 0:04:56.2]} 1... e5 {[%clk 0:04:57]} 2. Nc3 {[%clk 0:04:55.2]} 2...
Nf6 {[%clk 0:04:54.4]} 3. f4 {[%clk 0:04:53.4]} 3... d5 {[%clk 0:04:53.8]} 4.
fxe5 {[%clk 0:04:49.8]} 4... Nxe4 {[%clk 0:04:52.5]} 5. d3 {[%clk 0:04:49.7]}
5... Qh4+ {[%clk 0:04:41.5]} 6. g3 {[%clk 0:04:48]} 6... Nxg3 {[%clk 0:04:36.8]}
7. Nf3 {[%clk 0:04:46.7]} 7... Qh5 {[%clk 0:04:08.6]} 8. Nxd5 {[%clk 0:04:45.3]}
8... Na6 {[%clk 0:03:55.7]} 9. Nf4 {[%clk 0:04:43.4]} 9... Bc5 {[%clk
0:03:13.4]} 10. Nxh5 {[%clk 0:04:40.7]} 10... Nxh1 {[%clk 0:03:12.9]} 11. d4
{[%clk 0:04:39.8]} 11... Bg4 {[%clk 0:03:05.6]} 12. Nxg7+ {[%clk 0:04:36.8]}
12... Kf8 {[%clk 0:03:00.1]} 13. Bh6 {[%clk 0:04:32.2]} 13... Rd8 {[%clk
0:02:52.5]} 14. c3 {[%clk 0:04:30.6]} 14... Kg8 {[%clk 0:02:26.5]} 15. Bg2
{[%clk 0:04:27.5]} 15... Be7 {[%clk 0:02:18.5]} 16. Bxh1 {[%clk 0:04:24.9]}
16... Bh4+ {[%clk 0:02:15.8]} 17. Kd2 {[%clk 0:04:23.9]} 17... c5 {[%clk
0:02:10.1]} 18. Qg1 {[%clk 0:04:20.1]} 18... f5 {[%clk 0:02:04.1]} 19. exf6
{[%clk 0:04:17.1]} 19... cxd4 {[%clk 0:02:00.5]} 20. Qxg4 {[%clk 0:04:13.2]}
20... dxc3+ {[%clk 0:01:57.5]} 21. Kc2 {[%clk 0:04:00.8]} 21... Bxf6 {[%clk
0:01:54.9]} 22. Nh5+ {[%clk 0:03:54.5]} 22... Kf7 {[%clk 0:01:49.5]} 23. Nxf6
{[%clk 0:03:52.1]} 1-0

[Event "Live Chess"]
[Site "Chess.com"]
[Date "2024.06.02"]
[Round "-"]
[White "peteopeteo"]
[Black "JoeyCage"]
[Result "0-1"]
[WhiteElo "1556"]
[BlackElo "2396"]
[TimeControl "300"]
[EndTime "23:27:59 PDT"]
[Termination "JoeyCage won by resignation"]

1. e4 {[%clk 0:04:59.2]} 1... c5 {[%clk 0:04:58.5]} 2. Nf3 {[%clk 0:04:57.4]}
2... Nc6 {[%clk 0:04:57.3]} 3. Bc4 {[%clk 0:04:56.2]} 3... Nf6 {[%clk
0:04:55.8]} 4. Nc3 {[%clk 0:04:53.3]} 4... e6 {[%clk 0:04:52.8]} 5. O-O {[%clk
0:04:52]} 5... a6 {[%clk 0:04:50.9]} 6. d4 {[%clk 0:04:47.3]} 6... cxd4 {[%clk
0:04:49.2]} 7. Nxd4 {[%clk 0:04:46.3]} 7... b5 {[%clk 0:04:45.6]} 8. Be2 {[%clk
0:04:42.6]} 8... Bb7 {[%clk 0:04:41.4]} 9. Bg5 {[%clk 0:04:32.2]} 9... h6 {[%clk
0:04:37.8]} 10. Bh4 {[%clk 0:04:25.7]} 10... Qb6 {[%clk 0:04:26.2]} 11. Nxc6
{[%clk 0:04:15.8]} 11... Bxc6 {[%clk 0:04:19.3]} 12. Bxf6 {[%clk 0:03:56.4]}
12... gxf6 {[%clk 0:04:17.5]} 13. Qd3 {[%clk 0:03:56]} 13... Rc8 {[%clk
0:04:13.6]} 14. Rad1 {[%clk 0:03:53.9]} 14... Be7 {[%clk 0:04:11.5]} 15. Bf3
{[%clk 0:03:40.1]} 15... Qc7 {[%clk 0:04:05]} 16. Ne2 {[%clk 0:03:29.3]} 16...
Qe5 {[%clk 0:03:58.1]} 17. Qd4 {[%clk 0:03:22.6]} 17... Bc5 {[%clk 0:03:51.6]}
18. Qxe5 {[%clk 0:03:15.3]} 18... fxe5 {[%clk 0:03:50]} 19. c3 {[%clk
0:03:04.1]} 19... Ke7 {[%clk 0:03:47.9]} 20. b4 {[%clk 0:03:02.8]} 20... Bb6
{[%clk 0:03:43.4]} 21. Ng3 {[%clk 0:02:53.5]} 21... Rcg8 {[%clk 0:03:40.5]} 22.
Rd3 {[%clk 0:02:41.6]} 22... Rg5 {[%clk 0:03:37.4]} 23. Rfd1 {[%clk 0:02:32.2]}
23... h5 {[%clk 0:03:34.2]} 24. h4 {[%clk 0:02:28.1]} 24... Rxg3 {[%clk
0:03:31.8]} 25. a4 {[%clk 0:02:20.8]} 25... Rgg8 {[%clk 0:03:23.8]} 26. a5
{[%clk 0:02:19.5]} 26... Ba7 {[%clk 0:03:17.7]} 27. Rd6 {[%clk 0:02:15]} 27...
Rc8 {[%clk 0:03:10.7]} 28. R6d3 {[%clk 0:01:32.3]} 28... Rcd8 {[%clk 0:03:03.7]}
29. Kf1 {[%clk 0:00:54.7]} 29... Bb8 {[%clk 0:03:00.5]} 30. Re1 {[%clk
0:00:49.4]} 30... d5 {[%clk 0:02:54.4]} 31. exd5 {[%clk 0:00:47.8]} 31... Bxd5
{[%clk 0:02:51.7]} 32. Bxd5 {[%clk 0:00:44.8]} 32... Rxd5 {[%clk 0:02:50.1]} 33.
Rxd5 {[%clk 0:00:43.5]} 33... exd5 {[%clk 0:02:48.3]} 34. Rd1 {[%clk 0:00:43.4]}
34... Ke6 {[%clk 0:02:46.7]} 35. Rd3 {[%clk 0:00:42.7]} 35... f5 {[%clk
0:02:44.7]} 36. f4 {[%clk 0:00:40.6]} 36... e4 {[%clk 0:02:43.3]} 37. Re3 {[%clk
0:00:37.6]} 37... Bxf4 {[%clk 0:02:41.6]} 0-1